bitfinex/quotes_BTCUSD_20241117
["timestamp","ask_amount","ask_price","bid_price","bid_amount"]
[1731813144149,0.222335,89954.0,89946.0,0.10906255]
[1731813144368,0.21161005,89956.0,89947.0,0.023]
[1731813144586,0.111182,89942.0,89931.0,0.116195]
[1731813144875,0.04417598,89956.0,89942.0,0.023]
[1731813145093,0.16743407,89952.0,89944.0,0.023]
[1731813145311,0.111171,89952.0,89946.0,0.134177]
[1731813145538,0.14185584,89977.0,89945.0,0.10906255]
[1731813145539,0.23267521,89964.0,89950.0,0.023]
[1731813145770,0.27860207,89954.0,89952.0,0.023]
[1731813145987,0.111169,89953.0,89952.0,0.023]
[1731813146416,0.222328,89957.0,89952.0,0.023]
[1731813146681,0.111169,89953.0,89952.0,0.023]
[1731813146917,0.222316,89962.0,89952.0,0.023]
[1731813147154,0.111168,89954.0,89952.0,0.023]
[1731813147799,0.111169,89953.0,89952.0,0.023]
[1731813148029,0.111172,89950.0,89949.0,0.0763]
[1731813148251,0.111187,89938.0,89937.0,0.0763]
[1731813148482,0.222331,89956.0,89930.0,0.16743407]
[1731813148483,0.222372,89940.0,89930.0,0.16743407]
[1731813148736,0.111197,89930.0,89929.0,0.0813]
[1731813148981,0.111197,89930.0,89929.0,0.19036255]
[1731813149204,0.222387,89934.0,89929.0,0.19036255]
[1731813149430,0.111195,89932.0,89929.0,0.19036255]
[1731813149880,0.111195,89932.0,89930.0,0.023]
[1731813150100,0.222387,89934.0,89930.0,0.023]
[1731813150101,0.111196,89931.0,89930.0,0.023]
[1731813154311,0.16743407,89939.0,89930.0,0.023]
[1731813154312,0.222345,89951.0,89933.0,0.023]
[1731813154514,0.16743407,89946.0,89939.0,0.023]
[1731813154762,0.16743407,89955.0,89939.0,0.023]
[1731813154763,0.16743407,89955.0,89943.0,0.023]
[1731813155015,0.16743407,89955.0,89951.0,0.023]
[1731813155255,0.222336,89954.0,89951.0,0.023]
[1731813155470,0.222336,89954.0,89949.0,0.0763]
[1731813155471,0.111167,89954.0,89950.0,0.023]
[1731813155680,0.26628215,89958.0,89950.0,0.023]
[1731813155681,0.111169,89953.0,89950.0,0.023]
[1731813156605,0.111171,89951.0,89950.0,0.023]
[1731813157087,0.222318,89962.0,89950.0,0.023]
[1731813157088,0.111168,89954.0,89950.0,0.023]
[1731813157329,0.22233,89956.0,89950.0,0.023]
[1731813157330,0.111171,89951.0,89950.0,0.023]
[1731813157558,0.111171,89951.0,89940.0,0.005]
[1731813157559,0.111186,89939.0,89938.0,0.005]
[1731813157809,0.111186,89939.0,89938.0,0.0751]
[1731813158032,0.046,89953.0,89926.0,0.001712]
[1731813158033,0.111197,89930.0,89926.0,0.001712]
[1731813163643,0.27863107,89930.0,89926.0,0.001712]
[1731813163860,0.111197,89930.0,89927.0,0.000857]
[1731813164119,0.12158505,89930.0,89927.0,0.000857]
[1731813165061,0.14235697,89930.0,89927.0,0.000857]
[1731813165310,0.12158505,89930.0,89927.0,0.000857]
[1731813165540,0.111197,89930.0,89927.0,0.000857]
[1731813165771,0.12158087,89930.0,89927.0,0.000857]
[1731813166434,0.111197,89930.0,89927.0,0.000857]
[1731813166679,0.14234724,89930.0,89927.0,0.000857]
[1731813166905,0.12158041,89930.0,89927.0,0.000857]
[1731813167148,0.111197,89930.0,89927.0,0.000857]
[1731813167389,0.1423469,89930.0,89927.0,0.000857]
[1731813167604,0.14234526,89930.0,89927.0,0.000857]
[1731813167819,0.15634526,89930.0,89927.0,0.000857]
[1731813168059,0.15634526,89930.0,89900.0,0.16743407]
[1731813168060,0.005,89923.0,89903.0,0.005]
[1731813168270,0.54273576,89930.0,89903.0,0.005]
[1731813168271,0.111217,89914.0,89903.0,0.005]
[1731813168709,0.111217,89914.0,89892.0,0.18107847]
[1731813168710,0.160717,89914.0,89892.0,0.0136444]
[1731813168942,0.160717,89914.0,89903.0,0.005]
[1731813168943,0.243517,89914.0,89903.0,0.005]
[1731813169158,0.28069958,89914.0,89903.0,0.005]
[1731813169670,0.28069958,89914.0,89892.0,0.0136444]
[1731813169924,0.3148222,89914.0,89892.0,0.0136444]
[1731813170367,0.42388475,89914.0,89892.0,0.0136444]
[1731813170603,0.41588475,89914.0,89892.0,0.0136444]
[1731813171071,0.52936047,89914.0,89892.0,0.0136444]
[1731813171317,0.59172195,89914.0,89892.0,0.0136444]
[1731813171551,0.005,89909.0,89892.0,0.0136444]
[1731813171849,0.160743,89893.0,89892.0,0.0136444]
[1731813172328,0.30259884,89893.0,89892.0,0.0136444]
[1731813173011,0.160743,89893.0,89892.0,0.0136444]
[1731813176051,0.20395244,89893.0,89892.0,0.0136444]
[1731813176526,0.20395244,89893.0,89880.0,0.0008565]
[1731813176527,0.111258,89881.0,89880.0,0.0008565]
[1731813180866,0.35762055,89881.0,89880.0,0.0008565]
[1731813181081,0.35762055,89881.0,89862.0,0.0008565]
[1731813181082,0.25313584,89863.0,89862.0,0.0008565]
[1731813181786,0.39950869,89863.0,89862.0,0.0008565]
[1731813182253,0.40450869,89863.0,89862.0,0.0008565]
[1731813182710,0.22034255,89863.0,89862.0,0.0008565]
[1731813182926,0.26359671,89863.0,89862.0,0.0008565]
[1731813183601,0.31490701,89863.0,89862.0,0.0008565]
[1731813184759,0.32890701,89863.0,89862.0,0.0008565]
[1731813185007,0.21984446,89863.0,89862.0,0.0008565]
[1731813185218,0.18253416,89863.0,89862.0,0.0008565]
[1731813185701,0.42545255,89863.0,89862.0,0.0008565]
[1731813186465,0.46276285,89863.0,89862.0,0.0008565]
[1731813187589,0.42545255,89863.0,89862.0,0.0008565]
[1731813187831,0.52545255,89863.0,89862.0,0.0008565]
[1731813188045,0.53045255,89863.0,89862.0,0.0008565]
[1731813190572,0.53045255,89863.0,89831.0,0.0802]
[1731813190573,0.21129,89855.0,89831.0,0.0802]
[1731813190792,0.21129,89855.0,89830.0,0.16743407]
[1731813190793,0.54910839,89855.0,89830.0,0.16743407]
[1731813191014,0.58641869,89855.0,89830.0,0.16743407]
[1731813191956,0.60041869,89855.0,89830.0,0.16743407]
[1731813192192,0.56310839,89855.0,89830.0,0.16743407]
[1731813192427,0.56310839,89855.0,89826.0,0.16743407]
[1731813193601,0.57710839,89855.0,89826.0,0.16743407]
[1731813196278,0.005,89851.0,89826.0,0.16743407]
[1731813196490,0.111321,89830.0,89826.0,0.16743407]
[1731813196716,0.111321,89830.0,89825.0,0.0802]
[1731813197203,0.005,89851.0,89823.0,0.1121863]
[1731813197204,0.222619,89840.0,89828.0,0.023]
[1731813197425,0.16743407,89832.0,89828.0,0.023]
[1731813197649,0.22262,89839.0,89828.0,0.023]
[1731813197650,0.111317,89834.0,89828.0,0.023]
[1731813197868,0.22262,89839.0,89828.0,0.023]
[1731813198145,0.111314,89836.0,89828.0,0.134323]
[1731813198385,0.16743407,89845.0,89830.0,0.11132]
[1731813198386,0.111312,89838.0,89830.0,0.11132]
[1731813198601,0.222608,89844.0,89831.0,0.11132]
[1731813198819,0.222608,89844.0,89827.0,0.302848]
[1731813198820,0.222608,89844.0,89827.0,0.0802]
[1731813199035,0.111308,89841.0,89832.0,0.111317]
[1731813199277,0.16743407,89845.0,89828.0,0.222647]
[1731813199534,0.222613,89842.0,89828.0,0.222647]
[1731813199749,0.111304,89844.0,89837.0,0.111312]
[1731813199985,0.16743407,89845.0,89834.0,0.111315]
[1731813200215,0.111307,89841.0,89834.0,0.111315]
[1731813200451,0.222608,89844.0,89833.0,0.111316]
[1731813200681,0.111317,89834.0,89829.0,0.0802]
[1731813201136,0.222628,89836.0,89829.0,0.0802]
[1731813201423,0.111317,89834.0,89829.0,0.0802]
[1731813201689,0.111314,89836.0,89829.0,0.0802]
[1731813201903,0.21109922,89845.0,89829.0,0.0802]
[1731813202360,0.21109922,89845.0,89829.0,0.191521]
[1731813202624,0.111313,89837.0,89829.0,0.191521]
[1731813202842,0.111313,89837.0,89830.0,0.11132]
[1731813203757,0.111313,89837.0,89829.0,0.0802]
[1731813203758,0.111313,89837.0,89831.0,0.11132]
[1731813203977,0.111313,89837.0,89830.0,0.11132]
[1731813205078,0.111313,89837.0,89831.0,0.111319]
[1731813205509,0.222615,89841.0,89829.0,0.0802]
[1731813205723,0.222608,89844.0,89829.0,0.0802]
[1731813205975,0.43370522,89845.0,89833.0,0.111317]
[1731813206419,0.11131,89840.0,89833.0,0.111317]
[1731813206651,0.11131,89839.0,89833.0,0.111317]
[1731813206891,0.39001907,89854.0,89830.0,0.22264]
[1731813206892,0.222596,89849.0,89837.0,0.222623]
[1731813207122,0.16743407,89845.0,89840.0,0.111308]
[1731813207336,0.16743407,89845.0,89830.0,0.005]
[1731813207337,0.222622,89839.0,89830.0,0.005]
[1731813207554,0.111318,89833.0,89830.0,0.005]
[1731813207783,0.222608,89844.0,89830.0,0.005]
[1731813207784,0.111319,89832.0,89830.0,0.005]
[1731813208002,0.222608,89844.0,89830.0,0.005]
[1731813208003,0.222625,89837.0,89830.0,0.005]
[1731813208218,0.111319,89832.0,89830.0,0.005]
[1731813208495,0.222633,89834.0,89830.0,0.005]
[1731813208496,0.111317,89834.0,89830.0,0.005]
[1731813208720,0.16743407,89845.0,89830.0,0.005]
[1731813208998,0.111316,89835.0,89830.0,0.005]
[1731813209231,0.222624,89838.0,89831.0,0.111319]
[1731813209232,0.111314,89836.0,89831.0,0.111319]
[1731813209693,0.111314,89836.0,89830.0,0.005]
[1731813209694,0.111314,89836.0,89830.0,0.11632]
[1731813210148,0.111313,89837.0,89830.0,0.11632]
[1731813210379,0.21125359,89845.0,89830.0,0.11632]
[1731813210380,0.111314,89836.0,89831.0,0.111319]
[1731813210608,0.111314,89836.0,89833.0,0.0008552]
[1731813211102,0.222615,89841.0,89833.0,0.0008552]
[1731813211103,0.111315,89835.0,89833.0,0.0008552]
[1731813211983,0.111316,89834.0,89833.0,0.0008552]
[1731813212472,0.13214922,89834.0,89833.0,0.0008552]
[1731813214798,0.17668565,89834.0,89833.0,0.0008552]
[1731813215253,0.1766925,89834.0,89833.0,0.0008552]
[1731813215461,0.1686925,89834.0,89833.0,0.0008552]
[1731813216390,0.2686925,89834.0,89833.0,0.0008552]
[1731813216679,0.24785243,89834.0,89833.0,0.0008552]
[1731813218678,0.26867774,89834.0,89833.0,0.0008552]
[1731813219811,0.16867774,89834.0,89833.0,0.0795552]
[1731813220950,0.26867774,89834.0,89833.0,0.0795552]
[1731813221190,0.16867774,89834.0,89833.0,0.0795552]
[1731813221398,0.02082531,89834.0,89833.0,0.1908722]
[1731813221620,0.02082531,89834.0,89833.0,0.29993475]
[1731813221859,0.32201478,89848.0,89833.0,0.29993475]
[1731813221860,0.16743407,89841.0,89839.0,0.111309]
[1731813222069,0.02081869,89840.0,89839.0,0.11131]
[1731813222502,0.04255188,89848.0,89840.0,0.111308]
[1731813222503,0.111302,89846.0,89840.0,0.111308]
[1731813222716,0.02081677,89845.0,89841.0,0.1588884]
[1731813222930,0.111292,89854.0,89849.0,0.111297]
[1731813223139,0.02081606,89853.0,89845.0,0.0787]
[1731813223353,0.111288,89857.0,89846.0,0.10906255]
[1731813223569,0.16743407,89857.0,89849.0,0.222595]
[1731813223847,0.16743407,89857.0,89848.0,0.0787]
[1731813223848,0.16743407,89857.0,89850.0,0.33165555]
[1731813224096,0.16743407,89857.0,89853.0,0.111292]
[1731813224330,0.16743407,89857.0,89852.0,0.111293]
[1731813224572,0.111285,89859.0,89852.0,0.10906255]
[1731813224802,0.333834,89865.0,89853.0,0.222585]
[1731813225054,0.02079791,89864.0,89854.0,0.111291]
[1731813225296,0.04324938,89866.0,89852.0,0.10906255]
[1731813225509,0.02078945,89865.0,89852.0,0.10906255]
[1731813225769,0.14324938,89866.0,89852.0,0.10906255]
[1731813225770,0.111289,89856.0,89852.0,0.10906255]
[1731813225993,0.111295,89851.0,89848.0,0.0787]
[1731813226210,0.14324938,89866.0,89849.0,0.10906255]
[1731813226211,0.111293,89853.0,89849.0,0.10906255]
[1731813226463,0.111294,89852.0,89849.0,0.10906255]
[1731813226913,0.03325825,89865.0,89849.0,0.10906255]
[1731813226914,0.222558,89864.0,89849.0,0.10906255]
[1731813227194,0.111295,89851.0,89849.0,0.10906255]
[1731813227406,0.111297,89849.0,89848.0,0.0787]
[1731813230581,0.222575,89857.0,89848.0,0.0787]
[1731813230814,0.16743407,89858.0,89848.0,0.0787]
[1731813231050,0.222565,89861.0,89849.0,0.00222575]
[1731813231261,0.16743407,89857.0,89848.0,0.18776255]
[1731813231480,0.111297,89849.0,89848.0,0.18776255]
[1731813231941,0.111295,89851.0,89848.0,0.18776255]
[1731813232420,0.111297,89849.0,89848.0,0.18776255]
[1731813232880,0.111296,89850.0,89848.0,0.18776255]
[1731813233113,0.111294,89852.0,89848.0,0.18776255]
[1731813234607,0.22258,89855.0,89848.0,0.18776255]
[1731813234837,0.16743407,89857.0,89849.0,0.111297]
[1731813234838,0.111292,89854.0,89849.0,0.111297]
[1731813235053,0.222578,89856.0,89848.0,0.18776255]
[1731813235054,0.111292,89853.0,89848.0,0.18776255]
[1731813235707,0.27872207,89857.0,89849.0,0.222595]
[1731813235946,0.16743407,89857.0,89850.0,0.222593]
[1731813236154,0.1129998,89856.0,89850.0,0.111296]
[1731813236386,0.1129998,89856.0,89848.0,0.18776255]
[1731813236387,0.0017108,89856.0,89851.0,0.111294]
[1731813236855,0.0017108,89856.0,89848.0,0.18776255]
[1731813237069,0.0017108,89856.0,89852.0,0.111292]
[1731813237365,0.0017108,89856.0,89850.0,0.222592]
[1731813237603,0.0017108,89856.0,89848.0,0.18776255]
[1731813237604,0.0017108,89856.0,89855.0,0.11629]
[1731813237830,0.0017108,89856.0,89855.0,0.30665255]
[1731813240358,0.0017108,89856.0,89855.0,0.19036255]
[1731813240566,0.0017108,89856.0,89855.0,0.0813]
[1731813240795,0.1129998,89856.0,89855.0,0.0813]
[1731813241961,0.0017108,89856.0,89855.0,0.0813]
[1731813242442,0.1129998,89856.0,89855.0,0.0813]
[1731813242631,0.0017108,89856.0,89855.0,0.0813]
[1731813243056,0.1129998,89856.0,89855.0,0.0813]
[1731813243895,0.0017108,89856.0,89855.0,0.0813]
[1731813245028,0.111293,89853.0,89848.0,0.005]
[1731813245260,0.111297,89849.0,89848.0,0.10906255]
[1731813245486,0.111295,89851.0,89848.0,0.10906255]
[1731813245711,0.111293,89853.0,89848.0,0.10906255]
[1731813245943,0.111293,89853.0,89848.0,0.22036055]
[1731813246382,0.16914487,89856.0,89848.0,0.22036055]
[1731813246383,0.11129,89855.0,89848.0,0.22036055]
[1731813246587,0.111292,89854.0,89848.0,0.22036055]
[1731813247208,0.111293,89853.0,89848.0,0.10906255]
[1731813247901,0.22258,89855.0,89848.0,0.10906255]
[1731813248123,0.111293,89853.0,89848.0,0.10906255]
[1731813248340,0.0017108,89856.0,89851.0,0.111294]
[1731813248577,0.0017108,89856.0,89853.0,0.111292]
[1731813248804,0.0017108,89856.0,89855.0,0.11129]
[1731813249021,0.0017108,89856.0,89855.0,0.22035255]
[1731813250593,0.0017108,89856.0,89855.0,0.30295255]
[1731813250826,0.0017108,89856.0,89855.0,0.30880775]
[1731813256175,0.1129998,89856.0,89855.0,0.0008552]
[1731813256611,0.13382241,89856.0,89855.0,0.0008552]
[1731813256825,0.18796258,89856.0,89855.0,0.0008552]
[1731813257484,0.18795527,89856.0,89855.0,0.0008552]
[1731813258759,0.1974628,89856.0,89855.0,0.0008552]
[1731813258965,0.23077139,89856.0,89855.0,0.0008552]
[1731813259839,0.33077139,89856.0,89855.0,0.0008552]
[1731813260493,0.33075601,89856.0,89855.0,0.0008552]
[1731813261613,0.29745537,89856.0,89855.0,0.0008552]
[1731813261822,0.28945537,89856.0,89855.0,0.0008552]
[1731813262503,0.32274259,89856.0,89855.0,0.0008552]
[1731813262962,0.28945537,89856.0,89855.0,0.0008552]
[1731813263406,0.29116577,89856.0,89855.0,0.0008552]
[1731813266623,0.27034316,89856.0,89855.0,0.0008552]
[1731813268247,0.17034316,89856.0,89855.0,0.0008552]
[1731813269885,0.39874316,89856.0,89855.0,0.0008552]
[1731813270108,0.50780571,89856.0,89855.0,0.0008552]
[1731813270334,0.54107308,89856.0,89855.0,0.0008552]
[1731813271258,0.69086194,89856.0,89855.0,0.0008552]
[1731813271672,0.54107308,89856.0,89855.0,0.0008552]
[1731813272126,0.69084668,89856.0,89855.0,0.0008552]
[1731813273017,0.69082935,89856.0,89855.0,0.0008552]
[1731813273239,0.54107308,89856.0,89855.0,0.0008552]
[1731813273463,0.90960478,89856.0,89855.0,0.0008552]
[1731813273690,0.9095345,89856.0,89855.0,0.0008552]
[1731813273912,0.90953491,89856.0,89855.0,0.0008552]
[1731813274133,1.05927115,89856.0,89855.0,0.0008552]
[1731813274375,0.90953491,89856.0,89855.0,0.0008552]
[1731813275050,1.00520668,89856.0,89855.0,0.0008552]
[1731813275274,1.05925082,89856.0,89855.0,0.0008552]
[1731813275533,1.15905815,89856.0,89855.0,0.0008552]
[1731813275754,1.25086008,89856.0,89855.0,0.0008552]
[1731813276454,1.35066023,89856.0,89855.0,0.0008552]
[1731813276696,1.14179753,89856.0,89855.0,0.0008552]
[1731813276914,1.06139753,89856.0,89855.0,0.0008552]
[1731813277366,1.06139753,89856.0,89834.0,0.0008554]
[1731813277367,0.111315,89835.0,89834.0,0.0008554]
[1731813277612,5.51723339,89835.0,89834.0,0.0008554]
[1731813277850,0.116328,89824.0,89823.0,0.0008573]
[1731813278088,5.87635009,89824.0,89823.0,0.0008573]
[1731813278392,6.24462036,89824.0,89823.0,0.0008573]
[1731813278624,6.46475226,89824.0,89823.0,0.0008573]
[1731813279314,6.50836011,89824.0,89823.0,0.0008573]
[1731813279557,5.94074302,89824.0,89823.0,0.0008573]
[1731813280016,5.97395631,89824.0,89823.0,0.0008573]
[1731813280703,5.97389145,89824.0,89823.0,0.0008573]
[1731813282037,0.92389145,89824.0,89823.0,0.0008573]
[1731813282245,0.93789145,89824.0,89823.0,0.0008573]
[1731813282874,0.985035,89824.0,89823.0,0.0008573]
[1731813283089,0.93784517,89824.0,89823.0,0.0008573]
[1731813283542,0.95184517,89824.0,89823.0,0.0008573]
[1731813283995,0.56958563,89824.0,89823.0,0.0008573]
[1731813284253,0.55042428,89824.0,89823.0,0.0008573]
[1731813284472,0.54542428,89824.0,89823.0,0.0008573]
[1731813284685,0.53642428,89824.0,89823.0,0.0008573]
[1731813284904,0.44722428,89824.0,89823.0,0.0008573]
[1731813285351,0.30366173,89824.0,89823.0,0.0008573]
[1731813285791,0.28966173,89824.0,89823.0,0.0008573]
[1731813286012,0.27566173,89824.0,89823.0,0.0008573]
[1731813286470,0.28966173,89824.0,89823.0,0.0008573]
[1731813286709,0.27566173,89824.0,89823.0,0.0008573]
[1731813286962,0.222642,89831.0,89823.0,0.0008573]
[1731813286963,0.02072584,89830.0,89823.0,0.0008573]
[1731813287193,0.18815991,89830.0,89824.0,0.0813]
[1731813287399,0.222647,89828.0,89824.0,0.0813]
[1731813287643,0.111328,89824.0,89823.0,0.0008573]
[1731813288114,0.125328,89824.0,89823.0,0.0008573]
[1731813288357,0.225328,89824.0,89823.0,0.0008573]
[1731813288583,0.211328,89824.0,89823.0,0.0008573]
[1731813289018,0.23205016,89824.0,89823.0,0.0008573]
[1731813289437,0.48296855,89824.0,89823.0,0.0008573]
[1731813289682,0.48296855,89824.0,89806.0,0.0131578]
[1731813289683,0.111349,89807.0,89806.0,0.0131578]
[1731813290363,0.1320758,89807.0,89806.0,0.0131578]
[1731813290619,0.103349,89807.0,89806.0,0.0131578]
[1731813290822,0.12407816,89807.0,89806.0,0.0131578]
[1731813291291,0.22407816,89807.0,89806.0,0.0131578]
[1731813292172,0.203349,89807.0,89806.0,0.0131578]
[1731813292388,0.12072916,89807.0,89789.0,0.0813]
[1731813292616,0.111369,89791.0,89789.0,0.0813]
[1731813294388,0.15459707,89791.0,89789.0,0.0813]
[1731813300526,0.04322807,89791.0,89790.0,0.10991985]
[1731813300734,0.16743407,89805.0,89800.0,0.0813]
[1731813300964,0.19857754,89818.0,89800.0,0.0813]
[1731813300965,0.16743407,89807.0,89806.0,0.246751]
[1731813301200,0.16743407,89820.0,89813.0,0.0813]
[1731813301439,0.16743407,89820.0,89819.0,0.111335]
[1731813301652,0.16743407,89820.0,89819.0,0.22039755]
[1731813301866,0.16743407,89830.0,89819.0,0.22039755]
[1731813301867,0.16743407,89830.0,89819.0,0.33173055]
[1731813302082,0.16743407,89830.0,89816.0,0.227676]
[1731813302083,0.16743407,89830.0,89825.0,0.111327]
[1731813302320,0.16743407,89830.0,89826.0,0.22038755]
[1731813302558,0.04581393,89833.0,89827.0,0.0813]
[1731813302761,0.0017108,89833.0,89828.0,0.10906255]
[1731813302994,0.0017108,89833.0,89829.0,0.111322]
[1731813303211,0.0017108,89833.0,89827.0,0.0813]
[1731813303212,0.0017108,89833.0,89830.0,0.22038355]
[1731813303431,0.2243458,89833.0,89830.0,0.10906255]
[1731813303643,0.2243458,89833.0,89815.0,0.005]
[1731813303644,0.0017108,89833.0,89816.0,0.0863]
[1731813303846,0.111333,89821.0,89817.0,0.10906255]
[1731813304053,0.222651,89827.0,89817.0,0.10906255]
[1731813304276,0.0017108,89833.0,89817.0,0.10906255]
[1731813304277,0.0017108,89833.0,89821.0,0.222665]
[1731813304486,0.16743407,89826.0,89822.0,0.10906255]
[1731813304692,0.22264,89831.0,89823.0,0.111329]
[1731813304693,0.111323,89829.0,89823.0,0.111329]
[1731813304933,0.111323,89829.0,89820.0,0.005]
[1731813304934,0.222645,89829.0,89824.0,0.10906255]
[1731813305133,0.111327,89826.0,89824.0,0.10906255]
[1731813305340,0.111337,89817.0,89816.0,0.0813]
[1731813305605,0.103337,89817.0,89816.0,0.0813]
[1731813305793,0.103337,89817.0,89793.0,0.14185584]
[1731813305794,0.111348,89808.0,89807.0,0.0822]
[1731813306028,0.111347,89809.0,89807.0,0.0822]
[1731813306248,0.111348,89808.0,89807.0,0.0822]
[1731813306892,0.222683,89814.0,89807.0,0.0822]
[1731813307316,0.111346,89810.0,89807.0,0.0822]
[1731813307741,0.111347,89810.0,89807.0,0.0822]
[1731813307946,0.04453601,89814.0,89813.0,0.111342]
[1731813308180,0.02076481,89823.0,89817.0,0.111337]
[1731813308388,0.02076481,89823.0,89817.0,0.22039955]
[1731813308389,0.16743407,89819.0,89817.0,0.22039955]
[1731813308605,0.11133,89823.0,89817.0,0.22039855]
[1731813308872,0.11133,89823.0,89804.0,0.14685584]
[1731813308873,0.111337,89817.0,89803.0,0.005]
[1731813309089,0.222662,89822.0,89808.0,0.10906255]
[1731813309299,0.111335,89819.0,89813.0,0.111341]
[1731813309507,0.111335,89819.0,89814.0,0.10906255]
[1731813309738,0.16743407,89818.0,89804.0,0.222705]
[1731813310016,0.111345,89811.0,89808.0,0.10906255]
[1731813310240,0.111331,89822.0,89806.0,0.11135]
[1731813310443,0.04421783,89825.0,89803.0,0.1122097]
[1731813310444,0.111348,89809.0,89803.0,0.1122097]
[1731813310650,0.111343,89812.0,89808.0,0.10906255]
[1731813310877,0.16743407,89814.0,89807.0,0.0822]
[1731813311088,0.111353,89804.0,89803.0,0.0008557]
[1731813312165,0.28172446,89804.0,89803.0,0.0008557]
[1731813312622,0.3149588,89804.0,89803.0,0.0008557]
[1731813312846,0.111369,89791.0,89780.0,0.19743407]
[1731813313277,0.111369,89791.0,89780.0,0.03]
[1731813314841,0.15553461,89791.0,89780.0,0.03]
[1731813315953,0.222724,89798.0,89790.0,0.10991985]
[1731813316178,0.111365,89795.0,89791.0,0.10906255]
[1731813316401,0.222718,89800.0,89791.0,0.10906255]
[1731813316697,0.222719,89799.0,89791.0,0.10906255]
[1731813316905,0.0435333,89800.0,89792.0,0.222736]
[1731813317122,0.111362,89797.0,89793.0,0.19126255]
[1731813317339,0.222704,89806.0,89793.0,0.19126255]
[1731813317563,0.22763,89836.0,89793.0,0.19126255]
[1731813317564,0.16743407,89805.0,89798.0,0.005]
[1731813317782,0.27878607,89805.0,89799.0,0.22042155]
[1731813318008,0.31037206,89808.0,89802.0,0.111355]
[1731813318225,0.31037206,89808.0,89803.0,0.10906255]
[1731813318435,0.19902306,89808.0,89807.0,0.111349]
[1731813318652,0.19902306,89808.0,89807.0,0.22041155]
[1731813320101,0.19902306,89808.0,89807.0,0.23041155]
[1731813320505,0.19102306,89808.0,89807.0,0.37226739]
[1731813320900,0.61461049,89827.0,89816.0,0.304877]
[1731813321107,0.222653,89826.0,89817.0,0.10906255]
[1731813321345,0.222653,89826.0,89807.0,0.227698]
[1731813321346,0.16743407,89817.0,89805.0,0.0822]
[1731813321526,0.222682,89814.0,89807.0,0.111348]
[1731813321801,0.111343,89812.0,89807.0,0.111348]
[1731813322000,0.111341,89814.0,89808.0,0.111347]
[1731813322175,0.222674,89818.0,89806.0,0.2277]
[1731813322408,0.11134,89815.0,89809.0,0.111346]
[1731813322589,0.11134,89815.0,89807.0,0.222699]
[1731813322835,0.11134,89815.0,89810.0,0.111346]
[1731813323075,0.222674,89818.0,89810.0,0.111346]
[1731813323303,0.222652,89826.0,89810.0,0.111346]
[1731813323304,0.0017114,89812.0,89811.0,0.22040655]
[1731813324187,0.0017114,89812.0,89811.0,0.22540655]
[1731813324454,0.0017114,89812.0,89811.0,0.22740655]
[1731813324918,0.0017114,89812.0,89811.0,0.31400655]
[1731813326433,0.16743407,89830.0,89829.0,0.33977784]
[1731813326641,0.16743407,89830.0,89829.0,0.49564039]
[1731813327103,0.0017108,89833.0,89832.0,0.116318]
[1731813327339,0.0017108,89833.0,89832.0,0.22738055]
[1731813328234,0.0017108,89833.0,89832.0,0.22538055]
[1731813329562,0.0017108,89833.0,89832.0,0.23038055]
[1731813330237,0.0017108,89833.0,89832.0,0.23238055]
[1731813330482,0.0017108,89833.0,89832.0,0.23038055]
[1731813333661,0.0017108,89833.0,89832.0,0.23238055]
[1731813333861,0.0017108,89833.0,89832.0,0.33238055]
[1731813334461,0.0017108,89833.0,89832.0,0.41398055]
[1731813335460,0.16743407,89847.0,89832.0,0.41398055]
[1731813335461,0.16114487,89847.0,89846.0,0.121301]
[1731813335806,0.0017104,89856.0,89855.0,0.11129]
[1731813336022,0.0017104,89856.0,89855.0,0.22035255]
[1731813336611,0.0017104,89856.0,89855.0,0.21039255]
[1731813336981,0.0017104,89856.0,89855.0,0.21539255]
[1731813337187,0.0157104,89856.0,89855.0,0.21539255]
[1731813337391,0.0297104,89856.0,89855.0,0.21539255]
[1731813337817,0.0297104,89856.0,89855.0,0.10906255]
[1731813338247,0.1409994,89856.0,89855.0,0.10906255]
[1731813338849,0.1269994,89856.0,89855.0,0.10906255]
[1731813339053,0.1129994,89856.0,89855.0,0.10906255]
[1731813340272,0.0017104,89856.0,89855.0,0.10906255]
[1731813341413,0.0017104,89856.0,89855.0,0.22535255]
[1731813344742,0.0017104,89856.0,89855.0,0.30517799]
[1731813344974,0.0017104,89856.0,89855.0,0.30295255]
[1731813345175,0.0017104,89856.0,89855.0,0.30795255]
[1731813346233,0.0017104,89856.0,89855.0,0.40795255]
[1731813348302,0.0017104,89856.0,89855.0,0.40995255]
[1731813349168,0.0017104,89856.0,89855.0,0.40795255]
[1731813349601,0.0017104,89856.0,89855.0,0.40995255]
[1731813350721,0.16743407,89867.0,89855.0,0.40995255]
[1731813350722,0.16114447,89867.0,89855.0,0.11406255]
[1731813350964,0.16114447,89867.0,89857.0,0.01]
[1731813351193,0.16114447,89867.0,89859.0,0.005]
[1731813351194,0.02072408,89866.0,89859.0,0.005]
[1731813351430,0.270434,89874.0,89866.0,0.111276]
[1731813351640,0.02073077,89873.0,89866.0,0.10906255]
[1731813351895,0.02073086,89872.0,89867.0,0.111274]
[1731813352095,0.0479,89874.0,89866.0,0.10906255]
[1731813352321,0.0479,89874.0,89867.0,0.10906255]
[1731813352571,0.02074147,89873.0,89872.0,0.111269]
[1731813352787,0.222497,89889.0,89872.0,0.111269]
[1731813352788,0.111254,89885.0,89879.0,0.11126]
[1731813353012,0.222497,89889.0,89879.0,0.11126]
[1731813353013,0.02074043,89880.0,89879.0,0.22032255]
[1731813354369,0.111251,89887.0,89880.0,0.111259]
[1731813354600,0.02247658,89881.0,89880.0,0.22032155]
[1731813355256,0.02247658,89881.0,89880.0,0.10906255]
[1731813355720,0.02247658,89881.0,89880.0,0.22032155]
[1731813356580,0.02247658,89881.0,89880.0,0.10906255]
[1731813356788,0.13373458,89881.0,89880.0,0.10906255]
[1731813357032,0.02247658,89881.0,89868.0,0.16743407]
[1731813357244,0.02247658,89881.0,89859.0,0.005]
[1731813357245,0.222521,89879.0,89869.0,0.10906255]
[1731813357465,0.1121221,89874.0,89869.0,0.10906255]
[1731813357687,0.1121221,89874.0,89869.0,0.22033455]
[1731813357688,0.0008551,89874.0,89869.0,0.22033455]
[1731813358124,0.0008551,89874.0,89873.0,0.116268]